Cogmind - Beta 17 --- EXPLORER MODE // 2026.08.11 @ 21:02:52 Player: M1-K3 Result: Destroyed by DAS Turret with DAS Cannon Performance ------------- Evolutions (1) 500 Regions Visited (5) 1000 Robots Destroyed (14) 70 Value Destroyed (374) 374 Prototype IDs (1) 20 Alien Tech Used (0) 0 Bonus (300) 300 TOTAL SCORE: 2264 Bonus ------- Aligned with FarCom 300 Cogmind --------- Core Integrity 0/400 Matter 74/300 Energy 99/100 System Corruption 1% Temperature Cool (0) Movement Core (1400) Ox27 Location -9/Exiles Parts ------- > --- POWER (1) -------- (None) > --- PROPULSION (3) --- (None) > --- UTILITY (2) ------ Huge Storage Unit > --- WEAPON (4) ------- Katana > --- INVENTORY (25) --- Thermal Generator Small Battery (100) Small Matter Pod (50) Compact Matter Pod (150) Compact Matter Pod (150) Compact Matter Pod (150) Visual Processing Unit Signal Interpreter Improved Signal Interpreter Improved Terrain Scanner Targeting Computer Light Armor Plating Tractor Beam Trap Extractor (0/4) Mining Claw Peak State ------------ > --- POWER ------------ Light Nuclear Core > --- PROPULSION ------- Aluminum Leg Aluminum Leg > --- UTILITY ---------- Huge Storage Unit Experimental Sensor Array > --- WEAPON ----------- Small Laser Rocket Launcher Katana > --- INVENTORY -------- Light Treads Thermal Generator Small Battery Small Matter Pod Compact Matter Pod Compact Matter Pod Compact Matter Pod Visual Processing Unit Signal Interpreter Improved Signal Interpreter Improved Terrain Scanner Targeting Computer Light Armor Plating Light Armor Plating Tractor Beam Trap Extractor Mining Claw [Rating: 24] Favorites ----------- Power Nuclear Core Engine Ion Engine Power Core Nuclear Core Propulsion Light Treads Treads Light Treads Leg Aluminum Leg Utility Huge Storage Unit Device Seismic Detector Storage Huge Storage Unit Protection Light Armor Plating Weapon Shotgun Energy Gun EM Pulse Gun Ballistic Gun Shotgun Launcher Grenade Launcher Slashing Weapon Katana Build | -11 -10 -10 -9 -9 -9 ------- Run | Yrd Mat Min Mat Min Exi Slots Evolved 3 | . 1 . 2 . . Power . | . . . . . . Propulsion 1 | . . . 1 . . Utility . | . . . . . . Weapon 2 | . 1 . 1 . . Parts Attached 21 | . 4 2 6 2 7 Power 2 | . . 1 . . 1 Engine . | . . . . . . Core 2 | . . 1 . . 1 Reactor . | . . . . . . Propulsion 6 | . 2 . 2 . 2 Treads 4 | . 2 . 2 . . Leg 2 | . . . . . 2 Wheel . | . . . . . . Hover . | . . . . . . Flight . | . . . . . . Utility 4 | . 1 . . 1 2 Device 2 | . . . . 1 1 Storage 1 | . 1 . . . . Processor . | . . . . . . Hackware . | . . . . . . Protection 1 | . . . . . 1 Artifact . | . . . . . . Weapon 9 | . 1 1 4 1 2 Energy Gun 1 | . . 1 . . . Energy Cannon . | . . . . . . Ballistic Gun 4 | . 1 . 3 . . Ballistic Cannon . | . . . . . . Launcher 3 | . . . 1 1 1 Special Weapon . | . . . . . . Impact Weapon . | . . . . . . Slashing Weapon 1 | . . . . . 1 Piercing Weapon . | . . . . . . Special Melee Weapon . | . . . . . . Unidentified Prototypes 1 | . . . . . 1 Parts Lost 20 | . . 2 . . 18 Power 2 | . . . . . 2 Propulsion 6 | . . . . . 6 Utility 3 | . . . . . 3 Weapon 9 | . . 2 . . 7 Highest Loss Streak 12 | . . 2 . . 12 To Critical Strikes 12 | . . . . . 12 Average Backups 18 | 7 11 15 16 23 21 Power 1 | 1 1 1 1 1 . Propulsion 2 | 2 2 2 2 3 2 Utility 10 | 3 3 6 10 14 15 Weapon 4 | 1 4 5 3 5 3 Tool/Special . | . . . . . . Unused Backups 26 | . 7 4 . . 15 Power 3 | . 1 2 . . . Propulsion . | . . . . . . Utility 17 | . 3 . . . 14 Weapon 6 | . 3 2 . . 1 Tool/Special . | . . . . . . Average Slot Usage (%) 92 | . 99 97 93 100 70 Engine 3 | . 12 7 . . . Core 6 | . . 4 10 10 6 Treads 22 | . 15 25 23 30 16 Leg 2 | . 9 . . . 2 Device 3 | . . . . 8 6 Storage 10 | . 12 12 10 10 10 Protection 6 | . 12 12 10 1 . Energy Gun 13 | . 25 22 10 8 2 Ballistic Gun 20 | . 11 12 21 31 20 Launcher 1 | . . . 8 . 1 Peak Build Rating 24 | 7 10 14 20 23 24 Average Rating 15 | 7 9 11 16 21 17 On Entrance 13 | 7 7 10 12 20 23 Avg Prop Armor Cover (%) . | . . . . . . Naked Turns . | . . . . . . Heaviest Build 101 | 22 95 97 100 100 101 Greatest Support 66 | 20 40 40 66 66 66 Greatest Overweight (x) 30 | 1 4 2 2 1 30 Average Overweight (x) 1 | 1 1 2 1 1 3 Largest Inventory Capacity 25 | 10 25 25 25 25 25 Average Capacity 24 | 10 19 25 25 25 25 Most Carried 25 | 7 15 18 20 25 25 Average Carried 18 | 7 11 15 16 23 21 Final Capacity 25 | 10 25 25 25 25 25 Final Carried 25 | 7 15 17 20 25 15 Class Distribution -------------------- 50% | Hacker-Tank 36% | Hacker-Gunner 12% | Hacker-Mutant Dominant Class ---------------- Hacker-Tank | -10/Materials Hacker-Tank | -10/Mines Hacker-Tank | -9/Materials Hacker-Gunner | -9/Mines Hacker-Gunner | -9/Exiles Resources | -11 -10 -10 -9 -9 -9 ----------- Run | Yrd Mat Min Mat Min Exi Matter Collected 604 | 200 17 95 71 146 75 Remotely . | . . . . . . Salvage Created 393 | . 7 98 97 112 79 Parts 30 | . 2 2 11 15 . Haulers Intercepted . | . . . . . . Recyclers Shooed 1 | . . . . 1 . Parts Field Recycled . | . . . . . . Retrieved Matter . | . . . . . . Parts Self-Destructed . | . . . . . . Prevented . | . . . . . . Parts Restored . | . . . . . . Kills | -11 -10 -10 -9 -9 -9 ------- Run | Yrd Mat Min Mat Min Exi Combat Hostiles Destroyed 18 | . . 4 2 4 8 Melee 1 | . . . . . 1 Guns 11 | . . 3 2 2 4 AOE 6 | . . 1 . 2 3 Classes Destroyed 7 | . 1 2 1 2 1 Worker 2 | . 1 . . 1 . Watcher 1 | . . . 1 . . Swarmer 2 | . . . . 2 . Grunt 5 | . . 2 2 1 . Brawler 1 | . . . . 1 . Demolisher 2 | . . 2 . . . Assembled 7 | . . . . . 7 Best Kill Streak 7 | . 1 2 1 3 7 Combat Bots Only 7 | . . 2 1 2 7 Max Kills in Single Turn 2 | . 1 1 1 2 2 Gunslinging . | . . . . . . Exploded 2 | . . 1 . 1 2 Melee 1 | . . . . . 1 Uniques/NPCs Destroyed 1 | . . . . . 1 8R-AWN (-9/Exiles) Combat | -11 -10 -10 -9 -9 -9 -------- Run | Yrd Mat Min Mat Min Exi Hostile Shots Fired 252 | . . 26 6 8 212 Missed 51 | . . 6 3 2 40 Hits 201 | . . 20 3 6 172 Projectile 201 | . . 20 3 6 172 AOE 10 | . . 10 . . . Critical Strikes 71 | . . . . 1 70 Damage Taken 2198 | . . 334 27 33 1804 Core 459 | . . 35 7 3 414 Absorbed by Shields . | . . . . . . Ignored by Resistances 1283 | . . 199 13 23 1048 Core Remaining (%) 93 | 100 . 86 . . . Volleys Fired 47 | . . 10 4 7 26 Largest 4 | . . 3 4 4 3 Hottest 109 | . . 103 109 109 69 Shots Fired 101 | . . 27 14 16 44 Gun 88 | . . 27 14 12 35 Cannon . | . . . . . . Launcher 13 | . . . . 4 9 Special . | . . . . . . Kinetic 58 | . . 10 10 9 29 Thermal 13 | . . . 4 3 6 Explosive 13 | . . . . 4 9 Electromagnetic 17 | . . 17 . . . Robot Hit Streak 24 | . . 14 15 24 22 Robot Miss Streak 2 | . . 1 2 2 2 Penetration Max . | . . . . . . Secondary Targets 4 | . . 1 1 1 1 Max Gunslinging Chain 1 | . . 1 1 1 1 Shots Hit Robots 117 | . . 23 12 13 69 Core Hits 48 | . 1 10 7 8 22 Critical Kills . | . . . . . . Critical Parts Destroyed 1 | . . 1 . . . Critical Strikes 1 | . . 1 . . . Destroy 1 | . . 1 . . . Melee Attacks 32 | . . . . . 32 Impact . | . . . . . . Slashing 32 | . . . . . 32 Piercing . | . . . . . . Sneak Attacks . | . . . . . . Combat Hostiles . | . . . . . . Follow-up Attacks . | . . . . . . Damage Inflicted 2595 | . 20 407 202 317 1649 Guns 1115 | . . 326 195 176 418 Cannons . | . . . . . . Explosions 402 | . . 81 . 141 180 Melee 1023 | . . . . . 1023 Ramming 55 | . 20 . 7 . 28 Kinetic 873 | . . 163 153 145 412 Thermal 160 | . . 81 42 31 6 Explosive 321 | . . . . 141 180 Electromagnetic 163 | . . 163 . . . Impact . | . . . . . . Slashing 1023 | . . . . . 1023 Piercing . | . . . . . . Highest Corruption 1 | . . . 1 1 1 Average Corruption 1 | . . . 1 1 1 Corruption Purged . | . . . . . . Corruption Blocked . | . . . . . . Effects 17 | . . . . 10 7 Message Errors 7 | . . . . 5 2 Matter Fused 4 | . . . . 2 2 Heat Flow Errors 2 | . . . . 1 1 Energy Discharges 1 | . . . . . 1 Data Loss (minor) 1 | . . . . . 1 Data Loss (major) 2 | . . . . 2 . Overload Shots . | . . . . . . Overflow Damage . | . . . . . . Projectiles . | . . . . . . Explosions . | . . . . . . Melee . | . . . . . . Knockbacks . | . . . . . . Impact . | . . . . . . Kinetic . | . . . . . . Secondary . | . . . . . . Self-Inflicted Damage 35 | . . . 7 . 28 Shots . | . . . . . . Rammed 1 | . 1 . . . . Targets Rammed 2 | . 2 . . . . Kicked 1 | . 1 . . . . Crushed . | . . . . . . Highest Temperature 277 | . . 277 102 232 265 Average Temperature 77 | . . 100 39 97 46 Received Heat Transfer 87 | . . 57 18 12 . Effects 1 | . . 1 . . . Energy Bleed 1 | . . 1 . . . Siege Activations . | . . . . . . Martial Activations . | . . . . . . Shielding Activations . | . . . . . . Robots Disrupted . | . . . . . . Combat Hostiles . | . . . . . . Robots Corrupted . | . . . . . . Combat Hostiles . | . . . . . . Parts Fried . | . . . . . . Impact Corruptions . | . . . . . . Robots Melted . | . . . . . . Combat Hostiles . | . . . . . . Parts Melted . | . . . . . . Heat Transferred 261 | . . 50 100 75 36 Parts Sabotaged . | . . . . . . Parts Stolen . | . . . . . . Parts Stripped . | . . . . . . Power Chain Reactions 2 | . . 2 . . . Alert | -11 -10 -10 -9 -9 -9 ------- Run | Yrd Mat Min Mat Min Exi Maximum Alert Level . | . . . . . . Low Security (%) 100 | 100 100 100 100 100 . Level 1 . | . . . . . . Level 2 . | . . . . . . Level 3 . | . . . . . . Level 4 . | . . . . . . Level 5 . | . . . . . . High Security . | . . . . . . Max Security . | . . . . . . Peak Influence 76 | . 5 55 20 76 . Initial 1 | . . . . 1 . Average 3 | . . 3 2 6 . Influence Increases 292 | . 11 108 47 126 . Destroy 0b10 Robot/C 200 | . . 80 40 80 . Destroy 0b10 Robot/NC 15 | . 5 . 5 5 . Destroy Leader 42 | . . 20 2 20 . Successful Hack 6 | . 6 . . . . Disable Machine 4 | . . . . 4 . Destroy Structure 25 | . . 8 . 17 . Influence Decreases 292 | . 11 108 42 131 . Entered New Map 4 | . . . . 4 . Time Decay 278 | . 11 98 42 127 . Lost Part 10 | . . 10 . . . Squads Dispatched 1 | . . 1 . . . Investigation 1 | . . 1 . . . Extermination . | . . . . . . Reinforcement . | . . . . . . Assault . | . . . . . . Garrison . | . . . . . . Intercept . | . . . . . . Searches Triggered . | . . . . . . Construction Impeded . | . . . . . . Haulers Reinforced . | . . . . . . Active Scanning Responses . | . . . . . . Cargo Convoy Interrupts . | . . . . . . Stealth | -11 -10 -10 -9 -9 -9 --------- Run | Yrd Mat Min Mat Min Exi Distress Signals . | . . . . . . Communications Jammed . | . . . . . . Distress Signals . | . . . . . . Times Spotted 27 | . 2 9 4 4 8 Peak Tracking Total 9 | . 1 5 2 2 9 Tactical Retreats . | . . . . . . Traps | -11 -10 -10 -9 -9 -9 ------- Run | Yrd Mat Min Mat Min Exi Traps Triggered . | . . . . . . Indirectly . | . . . . . . Trap Hack Attempts . | . . . . . . Triggered . | . . . . . . Disarmed . | . . . . . . Reprogrammed . | . . . . . . Reused . | . . . . . . Traps Extracted . | . . . . . . Installed . | . . . . . . Triggered . | . . . . . . Machines | -11 -10 -10 -9 -9 -9 ---------- Run | Yrd Mat Min Mat Min Exi Machines Disabled 4 | . . . . 1 3 Max in Single Turn 1 | . . . . 1 1 Machines Repaired . | . . . . . . Machines Dismantled . | . . . . . . Machines Sabotaged . | . . . . . . Overloaded Fab Kills . | . . . . . . Hacking | -11 -10 -10 -9 -9 -9 --------- Run | Yrd Mat Min Mat Min Exi Machines Accessed 5 | . 4 1 . . . Terminals 4 | . 4 . . . . Fabricators . | . . . . . . Repair Stations . | . . . . . . Recycling Units . | . . . . . . Scanalyzers . | . . . . . . Garrison Access . | . . . . . . Total Hacks 10 | . 9 1 . . . Successful 6 | . 5 1 . . . Failed 4 | . 4 . . . . Catastrophic . | . . . . . . Database Lockouts . | . . . . . . Manual 10 | . 10 . . . . Terminals 9 | . 9 . . . . Fabricators . | . . . . . . Repair Stations . | . . . . . . Recycling Units . | . . . . . . Scanalyzers . | . . . . . . Garrison Access . | . . . . . . Terminal Hacks 3 | . 2 1 . . . Open Door 1 | . . 1 . . . Locate Traps 1 | . 1 . . . . Zone Layout 1 | . 1 . . . . Fabricator Hacks . | . . . . . . Repair Station Hacks . | . . . . . . Recycling Unit Hacks . | . . . . . . Scanalyzer . | . . . . . . Garrison Access Hacks . | . . . . . . Unauthorized Hacks 3 | . 3 . . . . Terminals 3 | . 3 . . . . Botnet 3 | . 3 . . . . Fabricators . | . . . . . . Repair Stations . | . . . . . . Recycling Units . | . . . . . . Scanalyzers . | . . . . . . Garrison Access . | . . . . . . Data Cores Recovered . | . . . . . . Used . | . . . . . . Hacking Detections 2 | . 2 . . . . Full Trace Events . | . . . . . . Feedback Events . | . . . . . . Feedback Blocked . | . . . . . . Robot Schematics Acquired . | . . . . . . Robots Built . | . . . . . . Authchips . | . . . . . . Time . | . . . . . . Total Robot Build Rating . | . . . . . . Part Schematics Acquired . | . . . . . . Parts Built . | . . . . . . Authchips . | . . . . . . Time . | . . . . . . Total Part Build Rating . | . . . . . . Part Studies Acquired . | . . . . . . Parts Repaired . | . . . . . . Time . | . . . . . . Parts Recycled . | . . . . . . Recycled Matter . | . . . . . . Retrieved Matter . | . . . . . . Retrieved Components . | . . . . . . Parts Scanalyzed . | . . . . . . Part Schematics Acquired . | . . . . . . Parts Damaged . | . . . . . . Bothacking | -11 -10 -10 -9 -9 -9 ------------ Run | Yrd Mat Min Mat Min Exi Used RIF Installer . | . . . . . . Robots Hacked . | . . . . . . Non-combat . | . . . . . . Combat . | . . . . . . Robot Hacks Applied . | . . . . . . Relay Couplers Released . | . . . . . . Fabnet Peak Effective % . | . . . . . . Robots Rewired . | . . . . . . Allies Hacked . | . . . . . . Hacks Repelled . | . . . . . . Allies | -11 -10 -10 -9 -9 -9 -------- Run | Yrd Mat Min Mat Min Exi Total Allies . | . . . . . . Largest Group . | . . . . . . Highest-Rated Group . | . . . . . . Highest-Rated Ally . | . . . . . . Total Orders . | . . . . . . Ally Attacks . | . . . . . . Total Damage . | . . . . . . Kills . | . . . . . . Allies Corrupted . | . . . . . . Allies Melted . | . . . . . . Intel | -11 -10 -10 -9 -9 -9 ------- Run | Yrd Mat Min Mat Min Exi Active Infowar (turns) 1131 | . . . . 796 335 Seismic 1131 | . . . . 796 335 Robot Analysis Total . | . . . . . . Derelict Logs Recovered 2 | . . . . 2 . Drone Launches . | . . . . . . Drone Recoveries . | . . . . . . Exploration | -11 -10 -10 -9 -9 -9 ------------- Run | Yrd Mat Min Mat Min Exi Turns Passed 3272 | 6 568 776 242 939 741 Spaces Moved 1075 | 4 211 231 76 380 173 Core 12 | . . . . . 12 Treads 943 | . 108 231 76 380 148 Legs 120 | 4 103 . . . 13 Wheels . | . . . . . . Hover . | . . . . . . Flight . | . . . . . . Fastest Speed 190 | 190 190 320 240 240 240 Average Speed 281 | 190 259 320 286 240 345 Slowest Speed 1550 | 190 400 320 320 240 1550 Overloaded Moves . | . . . . . . Propulsion Burnouts . | . . . . . . Robots Hopped . | . . . . . . Potential Cave-ins . | . . . . . . Cave-ins Triggered . | . . . . . . Exploration Rate (%) 33 | 1 28 53 12 62 43 Regions Visited 5 Branch Regions 3 Pre-discovered Areas 1 | . . . . 1 . Known Exits Taken 5 | 1 1 1 1 1 . Unknown Exits Taken . | . . . . . . Scrap Searched 2 | . . . . 2 . Spaces Dug . | . . . . . . Terrain Destroyed 41 | . . 8 . 19 14 Melee . | . . . . . . Projectile . | . . . . . . AOE 41 | . . 8 . 19 14 Terrain Rammed 2 | . . . 1 . 1 Walls Destroyed . | . . . . . . Machines Disabled 1 | . . . . . 1 Actions | -11 -10 -10 -9 -9 -9 --------- Run | Yrd Mat Min Mat Min Exi Total 1212 | 3 230 250 89 397 243 Wait 2 | . 1 . . 1 . Move 1070 | 3 210 230 75 379 173 Hop . | . . . . . . Pick Up 23 | . 10 5 2 6 . Fast Attach 3 | . 1 . 2 . . Attach 13 | . . 1 2 . 10 Detach 1 | . . . 1 . . Swap 10 | . 3 1 2 3 1 Drop 7 | . 3 3 . 1 . Fire 47 | . . 10 4 7 26 Melee 32 | . . . . . 32 Ram 2 | . . . 1 . 1 Kick 1 | . 1 . . . . Crush 1 | . 1 . . . . Escape Stasis . | . . . . . . Rewire . | . . . . . . Trap . | . . . . . . Miscellaneous . | . . . . . . Route ------- -11/Scrapyard -10/Materials -10/Mines -9/Materials -9/Mines (discovered 2 exits: *Mat / *Exi) -9/Exiles History --------- Turn | Location | Event 1 | -11/Scrapyard | Identified exit to Materials 1 | -11/Scrapyard | Discovered exit to Materials (range 1) 7 | -11/Scrapyard | Entered Materials 7 | -10/Materials | Evolved 1 slot: Weapon x1 321 | -10/Materials | Build established: Hacker-Tank 368 | -10/Materials | Identified exit to Mines 368 | -10/Materials | Discovered exit to Mines (range 16) 575 | -10/Materials | Entered Mines 1017 | -10/Mines | Identified exit to Materials 1017 | -10/Mines | Discovered exit to Materials (range 13) 1050 | -10/Mines | Met a Derelict shopkeep closing up shop 1225 | -10/Mines | Assembled infested the area 1351 | -10/Mines | Entered Materials 1351 | -9/Materials | Evolved 2 slots: Propulsion x1, Weapon x1 1524 | -9/Materials | Identified exit to Mines 1524 | -9/Materials | Discovered exit to Mines (range 12) 1593 | -9/Materials | Entered Mines 1663 | -9/Mines | Learned Materials terminal intel 1752 | -9/Mines | Received a Rocket Launcher from a helpful Derelict 2041 | -9/Mines | Build established: Hacker-Gunner 2084 | -9/Mines | Learned Materials emergency access door positions 2243 | -9/Mines | Learned location of Storage (-9) 2345 | -9/Mines | Found a damaged Exp. Sensor Array with a note attached 2350 | -9/Mines | Found Prototype Device 2359 | -9/Mines | Identified exit to Materials 2359 | -9/Mines | Discovered exit to Materials (range 14) 2518 | -9/Mines | Deemed a non-threat by the Exiles lab entrance 2520 | -9/Mines | Identified exit to Exiles 2520 | -9/Mines | Discovered exit to Exiles (range 5) 2532 | -9/Mines | Entered Exiles 2590 | -9/Exiles | Met 8R-AWN 2631 | -9/Exiles | Met EX-HEX 2715 | -9/Exiles | Met EX-BIN 2748 | -9/Exiles | Aligned with FarCom system 2751 | -9/Exiles | Given EX-Vault access code 2817 | -9/Exiles | Attacked by the Exiles 2902 | -9/Exiles | Destroyed 7 combat bots 2961 | -9/Exiles | Identified Exp. Sensor Array 3056 | -9/Exiles | Lost 12 parts (2p3n1u6w) 3091 | -9/Exiles | Core integrity fell below 50% 3155 | -9/Exiles | Core integrity fell below 20% 3173 | -9/Exiles | Destroyed 8R-AWN 3175 | -9/Exiles | Lost 6 parts (3n2u1w) 3273 | -9/Exiles | Destroyed by DAS Turret with DAS Cannon Last Messages --------------- 03103_ Penetrated by HV Slug. 03114_ Critical hit (Destroy). 03114_ Penetrated by HV Slug. 03114_ Lgt. Armor Plating destroyed. 03118_ Penetrated by HV Slug. 03118_ Sml. Laser destroyed. 03118_ Penetrated by HV Slug. 03137_ Destroyed Prototype Protection. 03138_ System corrupted: Component data lost. 03139_ Penetrated by HV Slug. 03144_ Critical hit (Destroy). 03144_ Lgt. Treads destroyed. 03144_ Penetrated by HV Slug. 03150_ HV Slug penetrates Wall. 03154_ Penetrated by HV Slug. 03158_ HV Slug penetrates Wall. 03163_ Penetrated by HV Slug. 03173_ 8R-AWN destroyed. 03175_ Acquired 28 matter. 03248_ System corrupted: Heat flow error (+293). Map ----- +----------------------------------------------------+ | ???????????????????#" #" #???????????????? | | ???????????????????#""""""?# #?#########?????? | | ???????????????????##"###??# #?#"""""""#?????? | | ???????????????????? ?????## ###"""""""#?????? | | ?????????????????????????## "##"""""""#?????? | | ?????????????????????????# ###"" """"#?????? | | ?????????????????????????# """"#?????? | | ?????????????????????????# """#?????? | | ?????????????????????????# """#?????? | | ?????????????????????????# """#?????? | | ?????????????????????????## """#?????? | | ?????????????????????????##" """##????? | | ???????????????????????##?## """""????? | | ???????????????????????# ### """##????? | | ????????????????????????# #" "X" """"?????? | | ?????????????????????????# """ #?????? | | ??????????????????????????# """"""""#?????? | | ??????????????????????????## ###########?????? | | ?????????????????????????##" #??????????????? | | ????????????????????######"" #??????????????? | | ??????????????????###"""""" ##??????????????? | | ????????????? ???"""""" " " ##???#########?? | | ??????????? "" """ " #####"""""""""# | | ?????????? " " " """ """" | | ?????????? % "" " | | ?????????? @ " "" | | ?????????? " | | ?????????? " | | ??????????? | | ??????????? """""" | | ???????????? ######""" | | ???????????? ""#?????#####""" | | ???????????? """#??????????##""" | | ????????????? """#????????????#"""" | | ????????????? ???????????????#"" | | ?????????????? ?????????????????"""" | | ?????????????? ????????????????"" | | ???????????????????????????????" | | ?????????????????????????????? | | ?????????????????????????????? | | ?????????????????????????????? " | | ?????????????????????????????? "" """ | | ???????????????????????????????##""" " " ""#" | | ?????????????????????????????????####""" """##"""" | | ????????????????????????????????????###""""#?##### | | ??????????????????????????????????????####???????? | | ?????????????????????????????????????????????????? | | ?????????????????????????????????????????????????? | | ?????????????????????????????????????????????????? | | ?????????????????????????????????????????????????? | +----------------------------------------------------+ Best States ------------- Heat Dissipation 28 Energy Generation 14 Energy Capacity 250 Matter Stores 300 Matter Capacity 300 Sight Range 16 Terrain Scan Density 10 Armor Coverage 150 Resistance: KI 35 Resistance: TH 35 Resistance: EX 35 Resistance: EM 35 Resistance: I 35 Resistance: S 35 Resistance: P 35 Evasion (%) 40 Recoil Reduction 3 Offensive Hacking 20 Item Schematics ----------------- None Robot Schematics ------------------ None Fabricated ------------ Nothing Repaired ---------- Nothing Studied --------- None Alien Tech Used ----------------- None Achievements -------------- None Challenges ------------ None Game ------ Seed WardroneSystemGriptreads Manual? 0 Play Time 00:22:41 Cumulative 29.7 hours Start 2026.08.11 @ 19:52:03 End 2026.08.11 @ 21:02:52 Sessions 3 Manual Loads 0 Difficulty Explorer Special Mode None Game No. 29 Rogue 5 Adventurer 0 Explorer 24 Win Type - Total 0 Types 0/0/0/0/0/0/0/0/0/0 Lore% 11 Gallery% 28 Achievement% 21 Wizard Run 0 Options --------- Layout 0 ASCII 0 Keyboard 1 Movement Vi Keybinds 0 Fullscreen 2 Font 24/X11 Map View 76x50 Zoom Use 0% Tactical HUD 1 Map Filters NONE Filters NONE Steam 1 RUN: 600b4369-fad3-4adb-b8c4-019b5c790c44